Cogmind - Beta 15 @@@ ROGUE MODE // 2025.05.17 @ 22:23:14 Player: Lunace Result: Destroyed by FY-KV0(R) with Subdweller Laser Performance ------------- Evolutions (0) 0 Regions Visited (2) 400 Robots Destroyed (23) 115 Value Destroyed (519) 519 Prototype IDs (0) 0 Alien Tech Used (0) 0 Bonus (0) 0 TOTAL SCORE: 1034 Bonus ------- None Cogmind --------- Core Integrity 0/250 Matter 261/300 Energy 230/250 System Corruption 0% Temperature Cool (6) Movement Core (650) Ox12 Location -10/Subcaves Parts ------- > --- POWER (1) -------- Ion Engine > --- PROPULSION (2) --- Subdweller Monowheel > --- UTILITY (2) ------ Large Storage Unit Subdweller Optics > --- WEAPON (2) ------- Subdweller Beam Cannon Grenade Launcher > --- INVENTORY (15) --- Light Ion Engine Light Treads Subdweller Monowheel High-capacity Matter Pod (200) Medium Laser Medium Laser Assault Rifle Mining Laser Scrap Shield Fragment (48) Peak State ------------ > --- POWER ------------ Subdweller Power Source > --- PROPULSION ------- Light Treads Subdweller Monowheel > --- UTILITY ---------- Large Storage Unit Subdweller Optics > --- WEAPON ----------- Subdweller Laser Subdweller Machine Gun > --- INVENTORY -------- Ion Engine Light Ion Engine Light Treads Subdweller Monowheel High-capacity Matter Pod Medium Laser Medium Laser Assault Rifle Subdweller Machine Gun Grenade Launcher Mining Laser Scrap Shield Fragment [Rating: 13] Favorites ----------- Power Ion Engine Engine Ion Engine Propulsion Light Treads Treads Light Treads Wheel Subdweller Monowheel Utility Large Storage Unit Device Seismic Detector Storage Large Storage Unit Protection Utility Shielding Weapon Assault Rifle Energy Gun Subdweller Laser Energy Cannon Subdweller Beam Cannon Ballistic Gun Assault Rifle Launcher Grenade Launcher Special Weapon Mining Laser Build | -11 -10 -10 ------- Run | Yrd Mat Sub Slots Evolved . | . . . Power . | . . . Propulsion . | . . . Utility . | . . . Weapon . | . . . Parts Attached 22 | 8 3 11 Power 3 | 2 . 1 Engine 3 | 2 . 1 Core . | . . . Reactor . | . . . Propulsion 5 | 2 . 3 Treads 2 | 2 . . Leg . | . . . Wheel 3 | . . 3 Hover . | . . . Flight . | . . . Utility 5 | 2 1 2 Device 2 | 1 . 1 Storage 2 | 1 1 . Processor . | . . . Hackware . | . . . Protection 1 | . . 1 Artifact . | . . . Weapon 9 | 2 2 5 Energy Gun 2 | 1 . 1 Energy Cannon 2 | . . 2 Ballistic Gun 3 | 1 . 2 Ballistic Cannon . | . . . Launcher 1 | . 1 . Special Weapon 1 | . 1 . Impact Weapon . | . . . Slashing Weapon . | . . . Piercing Weapon . | . . . Special Melee Weapon . | . . . Unidentified Prototypes . | . . . Parts Lost 6 | . . 6 Power . | . . . Propulsion 3 | . . 3 Utility 1 | . . 1 Weapon 2 | . . 2 Highest Loss Streak 4 | . . 4 To Critical Strikes . | . . . Average Backups 6 | 2 3 8 Power 1 | . 1 1 Propulsion . | . . 1 Utility . | . . 1 Weapon 3 | . 2 4 Tool/Special . | . . . Unused Backups 4 | . 1 3 Power . | . . . Propulsion 1 | . . 1 Utility 1 | . . 1 Weapon 2 | . 1 1 Tool/Special . | . . . Average Slot Usage (%) 97 | . 100 96 Engine 14 | . 14 14 Treads 24 | . 28 23 Wheel 3 | . . 4 Device 9 | . 14 8 Storage 14 | . 14 14 Protection 2 | . . 2 Energy Gun 5 | . 1 6 Energy Cannon 4 | . . 6 Ballistic Gun 12 | . 13 11 Launcher 4 | . 12 1 Special Weapon 1 | . . 1 Peak Build Rating 13 | 7 7 13 Average Rating 8 | 4 7 9 On Entrance 4 | . 7 7 Naked Turns . | . . . Heaviest Build 38 | 15 31 38 Greatest Support 40 | 40 40 40 Greatest Overweight (x) 1 | . . 1 Average Overweight (x) . | . . . Largest Inventory Capacity 15 | 8 15 15 Average Capacity 14 | 5 13 15 Most Carried 13 | 3 5 13 Average Carried 6 | 2 3 8 Final Capacity 15 | 8 15 15 Final Carried 9 | 2 5 9 Class Distribution -------------------- 88% | Mutant 11% | Scavenger-Mutant Dominant Class ---------------- Mutant | -10/Materials Mutant | -10/Subcaves Resources | -11 -10 -10 ----------- Run | Yrd Mat Sub Matter Collected 844 | 319 5 520 Remotely . | . . . Salvage Created 485 | 151 118 216 Parts 50 | 11 15 24 Haulers Intercepted 1 | . 1 . Recyclers Shooed . | . . . Parts Field Recycled . | . . . Retrieved Matter . | . . . Parts Self-Destructed 4 | . . 4 Prevented . | . . . Kills | -11 -10 -10 ------- Run | Yrd Mat Sub Combat Hostiles Destroyed 15 | . 8 7 Guns 5 | . . 5 AOE 10 | . 8 2 Classes Destroyed 7 | 2 4 1 Worker 2 | . 2 . Tunneler 4 | 4 . . Hauler 1 | . 1 . Recycler 1 | 1 . . Swarmer 6 | . 6 . Grunt 2 | . 2 . Subdweller 7 | . . 7 Best Kill Streak 7 | 4 7 2 Combat Bots Only 4 | . 4 2 Max Kills in Single Turn 4 | 1 4 1 Gunslinging . | . . . Exploded 3 | . 3 1 Melee . | . . . Uniques/NPCs Destroyed . | . . . Combat | -11 -10 -10 -------- Run | Yrd Mat Sub Hostile Shots Fired 51 | . 6 45 Missed 11 | . 1 10 Hits 40 | . 5 35 Projectile 40 | . 5 35 Critical Strikes 1 | . . 1 Actively Blocked 1 | . . 1 Damage Taken 960 | . 100 860 Core 269 | . 27 242 Absorbed by Shields . | . . . Redirected to Shielding 39 | . . 39 Core Remaining (%) 100 | 100 . . Volleys Fired 76 | 13 14 49 Largest 2 | 2 2 2 Hottest 110 | 70 100 110 Shots Fired 116 | 26 16 74 Gun 75 | 26 4 45 Cannon 17 | . . 17 Launcher 13 | . 8 5 Special 11 | . 4 7 Kinetic 38 | 13 4 21 Thermal 65 | 13 4 48 Explosive 13 | . 8 5 Electromagnetic . | . . . Robot Hit Streak 40 | 6 4 40 Robot Miss Streak 3 | 3 1 2 Penetration Max . | . . . Secondary Targets . | . . . Shots Hit Robots 63 | 13 5 45 Core Hits 32 | 6 13 13 Critical Kills . | . . . Critical Parts Destroyed . | . . . Critical Strikes 2 | 1 . 1 Burn 1 | 1 . . Destroy 1 | . . 1 Melee Attacks . | . . . Impact . | . . . Slashing . | . . . Piercing . | . . . Sneak Attacks . | . . . Combat Hostiles . | . . . Follow-up Attacks . | . . . Damage Inflicted 2056 | 168 806 1082 Guns 998 | 168 24 806 Cannons 28 | . . 28 Explosions 1030 | . 782 248 Melee . | . . . Ramming . | . . . Kinetic 501 | 92 24 385 Thermal 1017 | 76 492 449 Explosive 538 | . 290 248 Electromagnetic . | . . . Impact . | . . . Slashing . | . . . Piercing . | . . . Highest Corruption . | . . . Average Corruption . | . . . Corruption Purged . | . . . Corruption Blocked . | . . . Overload Shots . | . . . Overflow Damage 50 | . 49 1 Projectiles . | . . . Explosions 50 | . 49 1 Melee . | . . . Knockbacks . | . . . Impact . | . . . Kinetic . | . . . Secondary . | . . . Self-Inflicted Damage 161 | . 63 98 Shots 7 | . 3 4 Rammed . | . . . Targets Rammed . | . . . Kicked . | . . . Crushed . | . . . Highest Temperature 36 | 36 20 7 Average Temperature 13 | 16 9 5 Received Heat Transfer 165 | . 9 156 Siege Activations . | . . . Martial Activations . | . . . Shielding Activations . | . . . Robots Disrupted . | . . . Combat Hostiles . | . . . Robots Corrupted . | . . . Combat Hostiles . | . . . Parts Fried . | . . . Impact Corruptions . | . . . Robots Melted . | . . . Combat Hostiles . | . . . Parts Melted 1 | 1 . . Heat Transferred 1208 | 296 350 562 Parts Sabotaged . | . . . Parts Stolen . | . . . Parts Stripped . | . . . Power Chain Reactions . | . . . Alert | -11 -10 -10 ------- Run | Yrd Mat Sub Maximum Alert Level 1 | . 1 . Low Security (%) 72 | 100 66 . Level 1 27 | . 33 . Level 2 . | . . . Level 3 . | . . . Level 4 . | . . . Level 5 . | . . . High Security . | . . . Max Security . | . . . Peak Influence 271 | 15 271 . Initial . | . . . Average 135 | 2 169 . Influence Increases 416 | 25 391 . Destroy 0b10 Robot/C 160 | . 160 . Destroy 0b10 Robot/NC 40 | 25 15 . Destroy Leader 32 | . 32 . Successful Hack 14 | . 14 . Disable Machine 90 | . 90 . Destroy Structure 65 | . 65 . Lose Combat Pursuer 15 | . 15 . Influence Decreases 416 | 25 256 135 Entered New Map 66 | . . 66 Time Decay 350 | 25 256 69 Squads Dispatched . | . . . Investigation . | . . . Extermination . | . . . Reinforcement . | . . . Assault . | . . . Garrison . | . . . Intercept . | . . . Searches Triggered . | . . . Construction Impeded . | . . . Haulers Reinforced . | . . . Active Scanning Responses . | . . . Cargo Convoy Interrupts . | . . . Stealth | -11 -10 -10 --------- Run | Yrd Mat Sub Distress Signals 1 | . 1 . Communications Jammed . | . . . Distress Signals . | . . . Times Spotted 22 | . 13 9 Peak Tracking Total 6 | . 6 2 Tactical Retreats 1 | . 1 . Traps | -11 -10 -10 ------- Run | Yrd Mat Sub Traps Triggered . | . . . Indirectly . | . . . Trap Hack Attempts . | . . . Triggered . | . . . Disarmed . | . . . Reprogrammed . | . . . Reused . | . . . Traps Extracted . | . . . Installed . | . . . Triggered . | . . . Machines | -11 -10 -10 ---------- Run | Yrd Mat Sub Machines Disabled 6 | . 6 . Max in Single Turn 5 | . 5 . Machines Repaired . | . . . Machines Dismantled . | . . . Machines Sabotaged . | . . . Overloaded Fab Kills . | . . . Hacking | -11 -10 -10 --------- Run | Yrd Mat Sub Machines Accessed 3 | . 3 . Terminals 2 | . 2 . Fabricators . | . . . Repair Stations . | . . . Recycling Units 1 | . 1 . Scanalyzers . | . . . Garrison Access . | . . . Total Hacks 7 | . 7 . Successful 2 | . 2 . Failed 5 | . 5 . Catastrophic 1 | . 1 . Database Lockouts . | . . . Manual 2 | . 2 . Terminals 6 | . 6 . Fabricators . | . . . Repair Stations . | . . . Recycling Units 1 | . 1 . Scanalyzers . | . . . Garrison Access . | . . . Terminal Hacks 2 | . 2 . Terminal Index 1 | . 1 . Locate Traps 1 | . 1 . Fabricator Hacks . | . . . Repair Station Hacks . | . . . Recycling Unit Hacks . | . . . Scanalyzer . | . . . Garrison Access Hacks . | . . . Unauthorized Hacks . | . . . Terminals . | . . . Fabricators . | . . . Repair Stations . | . . . Recycling Units . | . . . Scanalyzers . | . . . Garrison Access . | . . . Data Cores Recovered . | . . . Used . | . . . Hacking Detections 3 | . 3 . Full Trace Events . | . . . Feedback Events . | . . . Feedback Blocked . | . . . Robot Schematics Acquired . | . . . Robots Built . | . . . Authchips . | . . . Time . | . . . Total Robot Build Rating . | . . . Part Schematics Acquired . | . . . Parts Built . | . . . Authchips . | . . . Time . | . . . Total Part Build Rating . | . . . Parts Repaired . | . . . Time . | . . . Parts Recycled . | . . . Recycled Matter . | . . . Retrieved Matter . | . . . Retrieved Components . | . . . Parts Scanalyzed . | . . . Part Schematics Acquired . | . . . Parts Damaged . | . . . Bothacking | -11 -10 -10 ------------ Run | Yrd Mat Sub Used RIF Installer . | . . . Robots Hacked . | . . . Non-combat . | . . . Combat . | . . . Robot Hacks Applied . | . . . Relay Couplers Released . | . . . Fabnet Peak Effective % . | . . . Robots Rewired . | . . . Allies Hacked . | . . . Hacks Repelled . | . . . Allies | -11 -10 -10 -------- Run | Yrd Mat Sub Total Allies . | . . . Largest Group . | . . . Highest-Rated Group . | . . . Highest-Rated Ally . | . . . Total Orders . | . . . Ally Attacks . | . . . Total Damage . | . . . Kills . | . . . Allies Corrupted . | . . . Allies Melted . | . . . Intel | -11 -10 -10 ------- Run | Yrd Mat Sub Active Infowar (turns) 1484 | 20 629 835 Optics 229 | . . 229 Seismic 1255 | 20 629 606 Robot Analysis Total . | . . . Derelict Logs Recovered 1 | . . 1 Drone Launches . | . . . Drone Recoveries . | . . . Exploration | -11 -10 -10 ------------- Run | Yrd Mat Sub Turns Passed 2304 | 159 629 1516 Spaces Moved 1260 | 68 314 878 Core 5 | 5 . . Treads 1053 | 63 314 676 Legs . | . . . Wheels 202 | . . 202 Hover . | . . . Flight . | . . . Fastest Speed 50 | 50 160 110 Average Speed 152 | 151 160 150 Slowest Speed 160 | 160 160 160 Overloaded Moves . | . . . Propulsion Burnouts . | . . . Robots Hopped . | . . . Potential Cave-ins . | . . . Cave-ins Triggered . | . . . Exploration Rate (%) 35 | 5 52 49 Regions Visited 2 Branch Regions 1 Pre-discovered Areas 1 | . . 1 Known Exits Taken . | . . . Unknown Exits Taken 2 | 1 1 . Scrap Searched . | . . . Spaces Dug 15 | . 12 3 Terrain Destroyed 107 | . 72 35 Melee . | . . . Projectile 9 | . 2 7 AOE 98 | . 70 28 Terrain Rammed . | . . . Walls Destroyed . | . . . Machines Disabled . | . . . Actions | -11 -10 -10 --------- Run | Yrd Mat Sub Total 1496 | 94 416 986 Wait 111 | 4 80 27 Move 1258 | 67 313 878 Hop . | . . . Pick Up 11 | 2 4 5 Fast Attach 14 | 6 . 8 Attach 6 | 1 . 5 Detach 5 | . . 5 Swap 9 | 1 3 5 Drop 6 | . 2 4 Fire 76 | 13 14 49 Melee . | . . . Ram . | . . . Kick . | . . . Crush . | . . . Escape Stasis . | . . . Rewire . | . . . Trap . | . . . Miscellaneous . | . . . Route ------- -11/Scrapyard -10/Materials (discovered 3 exits: [*Mat x2] / [*Sub]) -10/Subcaves (discovered 2 exits: [*Mat x2]) History --------- Turn | Location | Event 7 | -11/Scrapyard | Discovered new exit (range 15) 160 | -11/Scrapyard | Entered Materials 275 | -10/Materials | Discovered new exit (range 9) 317 | -10/Materials | Build established: Mutant 695 | -10/Materials | Discovered new exit (range 9) 787 | -10/Materials | Discovered new exit (range 2) 789 | -10/Materials | Entered Subcaves 835 | -10/Subcaves | A swath of the cavern ceiling suddenly collapsed 896 | -10/Subcaves | Discovered new exit (range 4) 975 | -10/Subcaves | Learned location of Zion (-6) 975 | -10/Subcaves | Met a Zionite searching for "candidates" 1091 | -10/Subcaves | Learned Materials stockpile data 1241 | -10/Subcaves | Discovered new exit (range 14) 1395 | -10/Subcaves | Ambushed by Subdweller buried in earth 2018 | -10/Subcaves | Core integrity fell below 50% 2093 | -10/Subcaves | Ambushed by Subdwellers from Twisted Machinery 2120 | -10/Subcaves | Core integrity fell below 20% 2159 | -10/Subcaves | Lost 4 parts (2n2w) 2305 | -10/Subcaves | Destroyed by FY-KV0(R) with Subdweller Laser Last Messages --------------- 02125_ Destroyed Scrap Shield. 02126_ Sub. Monowheel destroyed. 02128_ Lgt. Treads destroyed. 02128_ M7-9J8(R) destroyed. 02128_ Sub. Laser destroyed. 02128_ Destroyed Sub. Laser. 02131_ The unstable cave ceiling collapses. 02135_ Acquired Sub. Monowheel. 02138_ Acquired Sub. Beam Cannon. 02141_ The unstable cave ceiling collapses. 02192_ Acquired 46 matter. 02193_ Acquired 26 matter. 02197_ Sub. Monowheel shoots sparks and powers down. 02264_ Sub. Optics shoots sparks and powers down. 02271_ IN-KY9(u) deconstructs Twisted Machinery. 02305_ Sub. Monowheel destroyed. 02305_ Destroyed Sub. Monowheel. Map ----- +----------------------------------------------------+ | ??????????????????????????# ### ###### # | | ??????????????????????????###??## "#### | | ????????????????????????????????# ### | | ????????????????????????????????## #### # | | ?????????????????????????????????# #??## """# | | ?????????????????????????????????# #?### """# | | ?????????????????????????????????# ### """ | | ?????????????????????????????????## ## " " | | ??????????????????????????????????## #"" "" | | ??????????????????????????????????# ## " """"" | | ??????????????????????????????????# # " " | | ??????????????????????????????????## ## | | ??????????????????????????????????## ### ## | | ??????????????????????????????????# #?### ## | | ??????????????????????????????????## #?# # ## | | ??????????????????????????????????## ### # | | ?????????????????????????????????## ## "< # | | ?????????????????????????????????# ## | | ??????????????????######?????###### ### | | ??????????????##### # ????## #### ### # | | ??????????????? ??## ## ##### | | ????????????????? R ?## #???? | | ??????????????????# R ## ## ## ##???? | | ???????????????????# # #################????? | | ?????????????????# # #????????????????????? | | ?????????? @ ##????????????????????? | | ?????????? ##?????????????????????? | | ???????????# ## ####??????????????????????? | | ?????????????????#####???????????????????????????? | | ?????????????????????????????????????????????????? | | ?????????????????????????????????????????????????? | | ?????????????????????????????????????????????????? | | ?????????????????????????????????????????????????? | | ?????????????????????????????????????????????????? | | ?????????????????????????????????????????????????? | | ?????????????????????????????????????????????????? | | ?????????????????????????????????????????????????? | | ?????????????????????????????????????????????????? | | ?????????????????????????????????????????????????? | | ?????????????????????????????????????????????????? | | ?????????????????????????????????????????????????? | | ?????????????????????????????????????????????????? | | ?????????????????????????????????????????????????? | | | | | | | | | | | | | | | +----------------------------------------------------+ Best States ------------- Heat Dissipation 25 Energy Generation 15 Energy Capacity 250 Matter Stores 300 Matter Capacity 300 Sight Range 21 Terrain Scan Density 10 Utility Shielding 33 Evasion (%) 40 Recoil Reduction 2 Item Schematics ----------------- None Robot Schematics ------------------ None Fabricated ------------ Nothing Repaired ---------- Nothing Alien Tech Used ----------------- None Achievements -------------- None Challenges ------------ None Game ------ Seed DirtyAlphaPropulsion Manual? 0 Play Time 00:11:08 Cumulative 407.1 hours Start 2025.05.17 @ 22:12:45 End 2025.05.17 @ 22:23:14 Sessions 1 Manual Loads 0 Difficulty Rogue Special Mode None Game No. 405 Rogue 400 Adventurer 5 Explorer 0 Win Type - Total 9 Types 6/0/0/3/0/0/0/0/0/0 Lore% 81 Gallery% 78 Achievement% 71 Wizard Run 0 Options --------- Layout 1 ASCII 0 Keyboard 0 Movement Arrows Keybinds 0 Fullscreen 1 Font 24/Terminus Map View 50x35 Zoom Use 0% Tactical HUD 1 Map Filters NONE Filters NONE Steam 1 RUN: c831c19d-d330-4332-a9f0-f891ddf766ca